fUSD/lending_fUSD_20250622
["ID","MTS","AMOUNT","RATE_DAILY","PERIOD"]
[367028432,1750623051302,-490.0,0.00035616,15]
[367028433,1750623051311,-388.72925198,0.00035616,15]
[367028434,1750623051322,-151.0,0.00035616,7]
[367028435,1750623051333,-496.22936455,0.00035616,15]
[367028436,1750623051344,-490.0,0.00035616,15]
[367028437,1750623051353,-358.70194942,0.00035616,15]
[367028438,1750623051362,-490.0,0.00035616,15]
[367028439,1750623051372,-988.98,0.00035616,15]
[367028440,1750623051382,-490.0,0.00035616,15]
[367028441,1750623051392,-597.31,0.00035616,15]
[367028442,1750623051402,-490.0,0.00035616,15]
[367028443,1750623051411,-490.0,0.00035616,15]
[367028444,1750623051421,-151.685901,0.00035616,15]
[367028445,1750623051431,-490.0,0.00035616,15]
[367028446,1750623051441,-490.0,0.00035616,15]
[367028447,1750623051451,-334.67312333,0.00035616,15]
[367028448,1750623051460,-1017.78,0.00035616,15]
[367028449,1750623051470,-490.0,0.00035616,15]
[367028450,1750623051480,-490.0,0.00035616,15]
[367028451,1750623051489,-561.3,0.00035616,15]
[367028452,1750623051499,-490.0,0.00035616,15]
[367028453,1750623051513,-490.0,0.00035616,15]
[367028454,1750623051523,-266.43202567,0.00035616,15]
[367028455,1750623051533,-1007.33,0.00035616,15]
[367028456,1750623051542,-558.09,0.00035616,15]
[367028457,1750623051553,-690.54,0.00035616,15]
[367028458,1750623051563,-490.0,0.00035616,15]
[367028459,1750623051572,-241.57586365,0.00035616,15]
[367028460,1750623051582,-581.45,0.00035616,15]
[367028461,1750623051591,-224.000891,0.00035616,15]
[367028462,1750623051601,-490.0,0.00035616,15]
[367028464,1750623051611,-490.0,0.00035616,15]
[367028465,1750623051621,-490.0,0.00035616,15]
[367028466,1750623051631,-171.672728,0.00035616,7]
[367028467,1750623051640,-490.0,0.00035616,15]
[367028468,1750623051650,-490.0,0.00035616,15]
[367028469,1750623051659,-490.0,0.00035616,15]
[367028470,1750623051668,-490.0,0.00035616,15]
[367028471,1750623051679,-745.8,0.00035616,15]
[367028472,1750623051688,-1777.46,0.00035616,15]
[367028473,1750623051697,-490.0,0.00035616,15]
[367028474,1750623051707,-490.0,0.00035616,15]
[367028475,1750623051717,-490.0,0.00035616,15]
[367028476,1750623051726,-490.0,0.00035616,15]
[367028477,1750623051736,-490.0,0.00035616,15]
[367028478,1750623051747,-903.71,0.00035616,15]
[367028479,1750623051757,-1890.06,0.00035616,15]
[367028480,1750623051770,-490.0,0.00035616,15]
[367028481,1750623051780,-1558.15,0.00035616,15]
[367028482,1750623051791,-490.0,0.00035616,15]
[367028483,1750623051800,-490.0,0.00035616,15]
[367028484,1750623051811,-490.0,0.00035616,15]
[367028485,1750623051822,-490.0,0.00035616,15]
[367028486,1750623051832,-490.0,0.00035616,15]
[367028487,1750623051847,-490.0,0.00035616,15]
[367028488,1750623051857,-490.0,0.00035616,15]
[367028489,1750623051867,-490.0,0.00035616,15]
[367028490,1750623051879,-490.0,0.00035616,15]
[367028491,1750623051889,-559.39,0.00035616,15]
[367028492,1750623051899,-490.0,0.00035616,15]
[367028493,1750623051910,-490.0,0.00035616,15]
[367028494,1750623051923,-490.0,0.00035616,15]
[367028495,1750623051933,-490.0,0.00035616,15]
[367028496,1750623051944,-2017.34,0.00035616,15]
[367028497,1750623051956,-490.0,0.00035616,15]
[367028498,1750623051966,-490.0,0.00035616,15]
[367028499,1750623051977,-490.0,0.00035616,15]
[367028500,1750623051987,-1103.85,0.00035616,15]
[367028501,1750623051998,-1080.95,0.00035616,15]
[367028502,1750623052012,-490.0,0.00035616,15]
[367028503,1750623052022,-490.0,0.00035616,15]
[367028504,1750623052033,-493.48426734,0.00035616,15]
[367028505,1750623052043,-490.0,0.00035616,15]
[367028506,1750623052053,-490.0,0.00035616,15]
[367028507,1750623052062,-490.0,0.00035616,15]
[367028508,1750623052072,-490.0,0.00035616,15]
[367028509,1750623052082,-913.81,0.00035616,15]
[367028510,1750623052092,-490.0,0.00035616,15]
[367028511,1750623052101,-2190.4,0.00035616,15]
[367028512,1750623052110,-234.80845062,0.00035616,2]
[367028513,1750623052119,-490.0,0.00035616,15]
[367028514,1750623052129,-490.0,0.00035616,15]
[367028515,1750623052138,-568.31,0.00035616,15]
[367028516,1750623052147,-490.0,0.00035616,15]
[367028517,1750623052157,-490.0,0.00035616,15]
[367028518,1750623052166,-1152.56,0.00035616,2]
[367028519,1750623052175,-1996.18,0.00035616,15]
[367028520,1750623052185,-490.0,0.00035616,15]
[367028521,1750623052194,-1152.56,0.00035616,2]
[367028522,1750623052204,-1152.56,0.00035616,2]
[367028523,1750623052214,-1152.56,0.00035616,2]
[367028524,1750623052224,-1152.56,0.00035616,2]
[367028525,1750623052233,-1152.56,0.00035616,2]
[367028526,1750623052242,-617.96,0.00035616,15]
[367028527,1750623052252,-1152.56,0.00035616,2]
[367028528,1750623052265,-684.45,0.00035616,15]
[367028529,1750623052275,-1152.56,0.00035616,2]
[367028530,1750623052285,-1152.56,0.00035616,2]
[367028531,1750623052295,-490.0,0.00035616,15]
[367028532,1750623052304,-1152.56,0.00035616,2]
[367028533,1750623052314,-1152.56,0.00035616,2]
[367028534,1750623052323,-501.01695088,0.00035616,15]
[367028535,1750623052333,-1699.21,0.00035616,15]
[367028536,1750623052343,-1152.56,0.00035616,2]
[367028537,1750623052352,-1763.347446,0.00035616,15]
[367028539,1750623052363,-1152.56,0.00035616,2]
[367028540,1750623052373,-490.0,0.00035616,15]
[367028542,1750623052382,-1152.56,0.00035616,2]
[367028543,1750623052392,-1152.56,0.00035616,2]
[367028544,1750623052401,-490.0,0.00035616,15]
[367028545,1750623052411,-490.0,0.00035616,15]
[367028546,1750623052421,-490.0,0.00035616,15]
[367028547,1750623052431,-490.0,0.00035616,15]
[367028548,1750623052441,-782.17,0.00035616,15]
[367028549,1750623052450,-545.62,0.00035616,15]
[367028550,1750623052460,-490.0,0.00035616,2]
[367028551,1750623052470,-490.0,0.00035616,15]
[367028552,1750623052480,-490.0,0.00035616,15]
[367028553,1750623052490,-490.0,0.00035616,15]
[367028554,1750623052500,-2292.16,0.00035616,15]
[367028555,1750623052514,-490.0,0.00035616,15]
[367028556,1750623052523,-490.0,0.00035616,15]
[367028557,1750623052533,-1038.15,0.00035616,15]
[367028558,1750623052542,-490.0,0.00035616,15]
[367028559,1750623052552,-2131.49,0.00035616,15]
[367028560,1750623052562,-490.0,0.00035616,15]
[367028561,1750623052571,-490.0,0.00035616,2]
[367028562,1750623052581,-490.0,0.00035616,15]
[367028563,1750623052592,-508.45411064,0.00035616,15]
[367028564,1750623052602,-490.0,0.00035616,15]
[367028565,1750623052611,-1949.7,0.00035616,15]
[367028566,1750623052621,-2095.71,0.00035616,15]
[367028567,1750623052631,-937.69,0.00035616,15]
[367028568,1750623052641,-490.0,0.00035616,15]
[367028569,1750623052650,-490.0,0.00035616,15]
[367028570,1750623052660,-490.0,0.00035616,15]
[367028571,1750623052672,-490.0,0.00035616,15]
[367028572,1750623052687,-585.43070785,0.00035616,15]
[367028573,1750623052697,-1278.51,0.00035616,15]
[367028574,1750623052707,-696.79,0.00035616,15]
[367028575,1750623052718,-1951.19,0.00035616,15]
[367028576,1750623052729,-490.0,0.00035616,15]
[367028577,1750623052739,-490.0,0.00035616,15]
[367028578,1750623052750,-1111.1,0.00035616,15]
[367028579,1750623052770,-490.0,0.00035616,15]
[367028580,1750623052781,-490.0,0.00035616,15]
[367028581,1750623052792,-490.0,0.00035616,15]
[367028582,1750623052802,-490.0,0.00035616,15]
[367028583,1750623052813,-958.95,0.00035616,15]
[367028584,1750623052824,-490.0,0.00035616,15]
[367028585,1750623052836,-492.75345554,0.00035616,15]
[367028586,1750623052848,-1923.24,0.00035616,15]
[367028587,1750623052859,-401.54549818,0.00035616,15]
[367028588,1750623052871,-490.0,0.00035616,15]
[367028589,1750623052883,-550.96,0.00035616,15]
[367028590,1750623052893,-554.3,0.00035616,15]
[367028591,1750623052903,-490.0,0.00035616,15]
[367028592,1750623052913,-490.0,0.00035616,15]
[367028593,1750623052923,-490.0,0.00035616,15]
[367028594,1750623052933,-490.0,0.00035616,15]
[367028595,1750623052944,-490.0,0.00035616,15]
[367028596,1750623052955,-490.0,0.00035616,15]
[367028597,1750623052965,-1947.15,0.00035616,15]
[367028598,1750623052975,-2036.74,0.00035616,15]
[367028599,1750623052985,-490.0,0.00035616,15]
[367028600,1750623052995,-491.81204926,0.00035616,15]
[367028601,1750623053004,-563.72,0.00035616,15]
[367028608,1750623053020,-2127.54,0.00035616,15]
[367028609,1750623053243,-2066.45,0.00035616,15]
[367028610,1750623053253,-490.0,0.00035616,15]
[367028611,1750623053267,-490.0,0.00035616,15]
[367028612,1750623053277,-1971.77,0.00035616,15]
[367028613,1750623053286,-490.0,0.00035616,15]
[367028614,1750623053296,-490.0,0.00035616,15]
[367028615,1750623053306,-752.15,0.00035616,15]
[367028616,1750623053315,-490.0,0.00035616,15]
[367028617,1750623053325,-841.2,0.00035616,15]
[367028618,1750623053334,-490.0,0.00035616,15]
[367028619,1750623053344,-490.0,0.00035616,15]
[367028620,1750623053353,-490.0,0.00035616,15]
[367028621,1750623053363,-490.0,0.00035616,15]
[367028622,1750623053374,-490.0,0.00035616,15]
[367028623,1750623053384,-490.0,0.00035616,15]
[367028624,1750623053393,-500.0,0.00035616,15]
[367028625,1750623053402,-500.0,0.00035616,15]
[367028626,1750623053412,-500.0,0.00035616,15]
[367028627,1750623053422,-490.0,0.00035616,15]
[367028628,1750623053432,-500.0,0.00035616,15]
[367028629,1750623053441,-500.0,0.00035616,15]
[367028630,1750623053450,-490.0,0.00035616,15]
[367028631,1750623053459,-500.0,0.00035616,15]
[367028632,1750623053469,-1251.91,0.00035616,15]
[367028633,1750623053479,-500.0,0.00035616,15]
[367028634,1750623053489,-490.0,0.00035616,15]
[367028635,1750623053499,-490.0,0.00035616,15]
[367028636,1750623053513,-500.0,0.00035616,15]
[367028637,1750623053522,-622.63,0.00035616,15]
[367028638,1750623053532,-500.0,0.00035616,15]
[367028639,1750623053541,-500.0,0.00035616,15]
[367028640,1750623053551,-1178.89,0.00035616,15]
[367028641,1750623053560,-500.0,0.00035616,15]
[367028642,1750623053570,-324.76583309,0.00035616,15]
[367028643,1750623053580,-1033.09,0.00035616,15]
[367028644,1750623053590,-500.0,0.00035616,15]
[367028645,1750623053600,-490.0,0.00035616,15]
[367028646,1750623053609,-500.0,0.00035616,15]
[367028647,1750623053618,-500.0,0.00035616,15]
[367028648,1750623053628,-500.0,0.00035616,15]
[367028649,1750623053637,-490.0,0.00035616,15]
[367028650,1750623053647,-490.0,0.00035616,15]
[367028651,1750623053657,-490.0,0.00035616,15]
[367028652,1750623053667,-490.0,0.00035616,15]
[367028653,1750623053677,-1526.6,0.00035616,15]
[367028654,1750623053687,-228.81071643,0.00035616,15]
[367028655,1750623053696,-1732.58,0.00035616,15]
[367028656,1750623053706,-2330.89,0.00035616,15]
[367028657,1750623053715,-569.23,0.00035616,15]
[367028658,1750623053725,-490.0,0.00035616,15]
[367028659,1750623053735,-557.28,0.00035616,15]
[367028660,1750623053744,-490.0,0.00035616,15]
[367028661,1750623053754,-490.0,0.00035616,15]
[367028662,1750623053769,-843.87,0.00035616,15]
[367028663,1750623053779,-794.83,0.00035616,15]
[367028664,1750623053790,-490.0,0.00035616,15]
[367028665,1750623053800,-490.0,0.00035616,15]
[367028666,1750623053811,-490.0,0.00035616,15]
[367028667,1750623053820,-490.0,0.00035616,15]
[367028668,1750623053831,-490.0,0.00035616,15]
[367028669,1750623053842,-490.0,0.00035616,15]
[367028670,1750623053852,-1918.9,0.00035616,15]
[367028671,1750623053863,-490.0,0.00035616,15]
[367028672,1750623053873,-490.0,0.00035616,15]
[367028673,1750623053885,-490.0,0.00035616,15]
[367028674,1750623053895,-490.0,0.00035616,15]
[367028675,1750623053905,-490.0,0.00035616,15]
[367028676,1750623053916,-490.0,0.00035616,15]
[367028677,1750623053925,-490.0,0.00035616,15]
[367028678,1750623053935,-490.0,0.00035616,15]
[367028679,1750623053945,-5108.30126214,0.00035616,15]
[367028680,1750623053955,-674.69,0.00035616,15]
[367028681,1750623053965,-490.0,0.00035616,15]
[367028682,1750623053975,-1314.44,0.00035616,15]
[367028683,1750623053984,-490.0,0.00035616,15]
[367028684,1750623053995,-492.10873076,0.00035616,15]
[367028685,1750623054005,-490.0,0.00035616,15]
[367028687,1750623054021,-490.0,0.00035616,7]
[367028688,1750623054030,-573.69,0.00035616,15]
[367028689,1750623054040,-490.0,0.00035616,15]
[367028690,1750623054050,-490.0,0.00035616,15]
[367028691,1750623054059,-490.0,0.00035616,15]
[367028692,1750623054069,-490.0,0.00035616,15]
[367028693,1750623054078,-490.0,0.00035616,15]
[367028694,1750623054088,-1646.99,0.00035616,15]
[367028695,1750623054097,-490.0,0.00035616,15]
[367028696,1750623054107,-1706.53,0.00035616,15]
[367028697,1750623054116,-1896.7,0.00035616,15]
[367028698,1750623054126,-1923.45,0.00035616,15]
[367028699,1750623054135,-490.0,0.00035616,7]
[367028700,1750623054144,-490.0,0.00035616,15]
[367028701,1750623054154,-361.16697376,0.00035616,15]
[367028702,1750623054163,-490.0,0.00035616,15]
[367028703,1750623054173,-1465.41,0.00035616,15]
[367028704,1750623054183,-779.86,0.00035616,15]
[367028705,1750623054193,-490.0,0.00035616,15]
[367028706,1750623054203,-490.0,0.00035616,15]
[367028707,1750623054212,-882.36,0.00035616,15]
[367028708,1750623054222,-490.0,0.00035616,15]
[367028709,1750623054232,-490.0,0.00035616,15]
[367028710,1750623054244,-519.3,0.00035616,15]
[367028711,1750623054254,-1655.6,0.00035616,15]
[367028712,1750623054269,-490.0,0.00035616,15]
[367028713,1750623054280,-490.0,0.00035616,15]
[367028714,1750623054290,-490.0,0.00035616,15]
[367028715,1750623054301,-1063.35,0.00035616,15]
[367028716,1750623054312,-372.59585803,0.00035616,15]
[367028717,1750623054322,-490.0,0.00035616,15]
[367028718,1750623054332,-490.0,0.00035616,15]
[367028719,1750623054342,-490.0,0.00035616,15]
[367028720,1750623054352,-886.52,0.00035616,15]
[367028721,1750623054362,-490.0,0.00035616,15]
[367028722,1750623054372,-490.0,0.00035616,15]
[367028723,1750623054381,-490.0,0.00035616,15]
[367028724,1750623054391,-490.0,0.00035616,15]
[367028725,1750623054401,-1532.64,0.00035616,15]
[367028726,1750623054411,-235.81244958,0.00035616,15]
[367028727,1750623054420,-1090.39,0.00035616,15]
[367028728,1750623054429,-509.69738864,0.00035616,15]
[367028729,1750623054439,-490.0,0.00035616,15]
[367028730,1750623054449,-490.0,0.00035616,15]
[367028731,1750623054458,-490.0,0.00035616,15]
[367028732,1750623054468,-491.22793244,0.00035616,15]
[367028733,1750623054478,-490.0,0.00035616,15]
[367028734,1750623054488,-490.0,0.00035616,15]
[367028735,1750623054497,-1583.32,0.00035616,15]
[367028736,1750623054507,-490.0,0.00035616,15]
[367028737,1750623054520,-490.0,0.00035616,15]
[367028738,1750623054529,-2259.05,0.00035616,15]
[367028739,1750623054539,-490.0,0.00035616,15]
[367028740,1750623054549,-469.68401712,0.00035616,15]
[367028741,1750623054558,-490.0,0.00035616,15]
[367028742,1750623054569,-809.54,0.00035616,15]
[367028743,1750623054578,-954.98,0.00035616,15]
[367028744,1750623054588,-1108.87,0.00035616,15]
[367028745,1750623054597,-490.0,0.00035616,15]
[367028746,1750623054607,-490.0,0.00035616,15]
[367028747,1750623054616,-490.0,0.00035616,15]
[367028748,1750623054626,-490.0,0.00035616,15]
[367028749,1750623054635,-764.87,0.00035616,15]
[367028750,1750623054645,-498.45,0.00035616,15]
[367028751,1750623054654,-490.0,0.00035616,15]
[367028752,1750623054663,-490.99207317,0.00035616,15]
[367028753,1750623054673,-490.0,0.00035616,15]
[367028754,1750623054682,-1030.96,0.00035616,15]
[367028755,1750623054692,-490.0,0.00035616,15]
[367028756,1750623054701,-490.0,0.00035616,15]
[367028757,1750623054711,-490.0,0.00035616,15]
[367028758,1750623054720,-490.0,0.00035616,15]
[367028759,1750623054729,-1705.66,0.00035616,15]
[367028760,1750623054739,-490.0,0.00035616,15]
[367028761,1750623054749,-769.06,0.00035616,15]
[367028762,1750623054758,-490.0,0.00035616,15]
[367028763,1750623054769,-490.0,0.00035616,15]
[367028764,1750623054779,-490.0,0.00035616,15]
[367028765,1750623054789,-757.66,0.00035616,15]
[367028766,1750623054798,-490.0,0.00035616,15]
[367028767,1750623054808,-493.31246343,0.00035616,15]
[367028768,1750623054818,-958.05,0.00035616,15]
[367028769,1750623054827,-490.0,0.00035616,15]
[367028770,1750623054839,-490.0,0.00035616,15]
[367028771,1750623054848,-490.0,0.00035616,15]
[367028772,1750623054859,-509.35010807,0.00035616,15]
[367028773,1750623054870,-972.54,0.00035616,15]
[367028774,1750623054880,-1045.31,0.00035616,15]
[367028775,1750623054891,-492.47857556,0.00035616,15]
[367028776,1750623054901,-204.49002967,0.00035616,15]
[367028777,1750623054910,-507.13,0.00035616,15]
[367028778,1750623054920,-1868.99,0.00035616,15]
[367028779,1750623054930,-490.0,0.00035616,15]
[367028780,1750623054940,-1703.66,0.00035616,15]
[367028781,1750623054950,-490.0,0.00035616,15]
[367028782,1750623054959,-490.0,0.00035616,15]
[367028784,1750623054968,-490.0,0.00035616,15]
[367028785,1750623054977,-490.0,0.00035616,15]
[367028786,1750623054987,-1399.22,0.00035616,15]
[367028787,1750623054996,-490.0,0.00035616,15]
[367028788,1750623055006,-1301.13,0.00035616,15]
[367028789,1750623055017,-490.0,0.00035616,15]
[367028790,1750623055027,-490.0,0.00035616,15]
[367028791,1750623055036,-490.0,0.00035616,15]
[367028792,1750623055046,-483.98342654,0.00035616,15]
[367028793,1750623055055,-490.0,0.00035616,15]
[367028794,1750623055064,-490.0,0.00035616,15]
[367028795,1750623055074,-654.76,0.00035616,15]
[367028796,1750623055084,-490.0,0.00035616,15]
[367028797,1750623055093,-490.0,0.00035616,15]
[367028798,1750623055102,-490.0,0.00035616,15]
[367028799,1750623055112,-490.0,0.00035616,15]
[367028800,1750623055121,-490.0,0.00035616,15]
[367028801,1750623055130,-490.0,0.00035616,15]
[367028802,1750623055139,-536.14,0.00035616,15]
[367028803,1750623055148,-2146.04,0.00035616,15]
[367028804,1750623055158,-1256.44,0.00035616,15]
[367028805,1750623055167,-490.0,0.00035616,15]
[367028806,1750623055176,-490.0,0.00035616,15]
[367028807,1750623055185,-490.0,0.00035616,15]
[367028808,1750623055195,-490.0,0.00035616,15]
[367028809,1750623055204,-1991.16,0.00035616,15]
[367028810,1750623055213,-1118.09,0.00035616,15]
[367028811,1750623055223,-490.0,0.00035616,15]
[367028812,1750623055232,-490.0,0.00035616,15]
[367028813,1750623055242,-490.0,0.00035616,15]
[367028814,1750623055251,-494.41323582,0.00035616,15]
[367028815,1750623055263,-1301.68,0.00035616,15]
[367028816,1750623055272,-490.0,0.00035616,15]
[367028817,1750623055281,-2093.47,0.00035616,15]
[367028818,1750623055291,-490.0,0.00035616,15]
[367028819,1750623055300,-1138.32,0.00035616,15]
[367028820,1750623055311,-1552.82,0.00035616,15]
[367028821,1750623055321,-625.24,0.00035616,15]
[367028822,1750623055330,-490.0,0.00035616,15]
[367028823,1750623055340,-490.0,0.00035616,15]
[367028824,1750623055349,-490.0,0.00035616,15]
[367028825,1750623055358,-1509.09,0.00035616,15]
[367028826,1750623055368,-490.0,0.00035616,15]
[367028827,1750623055377,-1794.71,0.00035616,15]
[367028828,1750623055386,-656.93,0.00035616,15]
[367028829,1750623055396,-490.0,0.00035616,15]
[367028830,1750623055405,-3146.84,0.00035616,15]
[367028831,1750623055415,-490.0,0.00035616,15]
[367028832,1750623055424,-490.0,0.00035616,15]
[367028833,1750623055434,-1267.42,0.00035616,15]
[367028834,1750623055443,-819.95,0.00035616,15]
[367028835,1750623055452,-1172.57,0.00035616,15]
[367028836,1750623055462,-1008.17,0.00035616,15]
[367028837,1750623055471,-520.63992822,0.00035616,15]
[367028838,1750623055481,-2880.97,0.00035616,15]
[367028839,1750623055490,-490.0,0.00035616,15]
[367028840,1750623055500,-490.0,0.00035616,15]
[367028841,1750623055511,-490.0,0.00035616,15]
[367028842,1750623055520,-490.0,0.00035616,15]
[367028843,1750623055530,-490.0,0.00035616,15]
[367028844,1750623055539,-490.0,0.00035616,15]
[367028845,1750623055550,-326.93689959,0.00035616,15]
[367028846,1750623055559,-1397.05,0.00035616,15]
[367028847,1750623055569,-490.0,0.00035616,15]
[367028848,1750623055578,-490.0,0.00035616,15]
[367028849,1750623055588,-968.44,0.00035616,15]
[367028850,1750623055597,-490.0,0.00035616,15]
[367028851,1750623055607,-490.0,0.00035616,15]
[367028852,1750623055616,-1987.58,0.00035616,15]
[367028853,1750623055625,-490.0,0.00035616,15]
[367028854,1750623055636,-500.0,0.00035616,15]
[367028855,1750623055646,-342.09144923,0.00035616,15]
[367028856,1750623055655,-490.0,0.00035616,15]
[367028857,1750623055664,-643.07,0.00035616,15]
[367028858,1750623055674,-490.0,0.00035616,15]
[367028859,1750623055683,-490.0,0.00035616,15]
[367028860,1750623055772,-490.0,0.00035616,15]
[367028861,1750623055781,-490.0,0.00035616,15]
[367028862,1750623055791,-490.0,0.00035616,15]
[367028863,1750623055801,-493.11115985,0.00035616,15]
[367028864,1750623055811,-2472.69,0.00035616,15]
[367028865,1750623055820,-490.0,0.00035616,15]
[367028866,1750623055830,-490.0,0.00035616,15]
[367028867,1750623055842,-490.0,0.00035616,15]
[367028868,1750623055851,-1581.01,0.00035616,15]
[367028869,1750623055862,-490.0,0.00035616,15]
[367028870,1750623055872,-490.0,0.00035616,15]
[367028871,1750623055883,-490.0,0.00035616,15]
[367028872,1750623055893,-490.0,0.00035616,15]
[367028873,1750623055902,-490.0,0.00035616,15]
[367028874,1750623055911,-713.45,0.00035616,15]
[367028875,1750623055922,-490.0,0.00035616,15]
[367028876,1750623055931,-1332.01,0.00035616,15]
[367028877,1750623055940,-490.0,0.00035616,15]
[367028878,1750623055949,-490.0,0.00035616,15]
[367028879,1750623055958,-490.0,0.00035616,15]
[367028880,1750623055967,-490.0,0.00035616,15]
[367028881,1750623055976,-490.0,0.00035616,15]
[367028882,1750623055986,-1861.84,0.00035616,15]
[367028883,1750623055995,-490.0,0.00035616,15]
[367028884,1750623056004,-490.0,0.00035616,15]
[367028885,1750623056014,-490.0,0.00035616,15]
[367028886,1750623056024,-431.55091874,0.00035616,15]
[367028887,1750623056033,-490.0,0.00035616,15]
[367028888,1750623056042,-2023.73,0.00035616,15]
[367028889,1750623056051,-452.72305178,0.00035616,15]
[367028890,1750623056060,-490.0,0.00035616,15]
[367028891,1750623056069,-1591.1,0.00035616,15]
[367028892,1750623056079,-490.0,0.00035616,15]
[367028893,1750623056087,-490.0,0.00035616,15]
[367028894,1750623056096,-491.70372217,0.00035616,15]
[367028895,1750623056106,-490.0,0.00035616,15]
[367028896,1750623056115,-490.0,0.00035616,15]
[367028897,1750623056124,-490.0,0.00035616,15]
[367028898,1750623056134,-1754.05,0.00035616,15]
[367028899,1750623056144,-490.0,0.00035616,15]
[367028900,1750623056152,-490.0,0.00035616,15]
[367028901,1750623056162,-490.0,0.00035616,15]
[367028902,1750623056171,-3961.99,0.00035616,15]
[367028903,1750623056180,-480.0,0.00035616,15]
[367028904,1750623056189,-490.0,0.00035616,15]
[367028905,1750623056199,-588.0,0.00035616,15]
[367028906,1750623056208,-490.0,0.00035616,15]
[367028907,1750623056217,-490.0,0.00035616,15]
[367028908,1750623056226,-490.0,0.00035616,15]
[367028909,1750623056235,-490.0,0.00035616,15]
[367028910,1750623056245,-490.0,0.00035616,15]
[367028911,1750623056254,-500.0,0.00035616,15]
[367028912,1750623056267,-500.0,0.00035616,15]
[367028913,1750623056276,-541.04409858,0.00035616,15]
[367028914,1750623056285,-509.31486063,0.00035616,15]
[367028915,1750623056295,-490.0,0.00035616,15]
[367028916,1750623056304,-824.41,0.00035616,15]
[367028917,1750623056313,-490.0,0.00035616,15]
[367028919,1750623056322,-1314.71,0.00035616,15]
[367028921,1750623056331,-490.0,0.00035616,15]
[367028923,1750623056340,-272.07970792,0.00035616,15]
[367028925,1750623056350,-490.0,0.00035616,15]
[367028926,1750623056359,-490.0,0.00035616,15]
[367028927,1750623056369,-490.0,0.00035616,15]
[367028928,1750623056378,-490.0,0.00035616,15]
[367028929,1750623056388,-1977.55,0.00035616,15]
[367028931,1750623056398,-491.85684545,0.00035616,15]
[367028932,1750623056407,-490.0,0.00035616,15]
[367028933,1750623056417,-490.0,0.00035616,15]
[367028934,1750623056426,-490.0,0.00035616,15]
[367028935,1750623056435,-490.0,0.00035616,15]
[367028936,1750623056445,-490.0,0.00035616,15]
[367028937,1750623056454,-490.0,0.00035616,15]
[367028938,1750623056465,-490.0,0.00035616,15]
[367028939,1750623056475,-2209.61,0.00035616,15]
[367028940,1750623056485,-490.0,0.00035616,15]
[367028941,1750623056495,-490.0,0.00035616,15]
[367028942,1750623056505,-490.0,0.00035616,15]
[367028943,1750623056518,-490.0,0.00035616,15]
[367028944,1750623056527,-490.0,0.00035616,15]
[367028945,1750623056536,-1229.85,0.00035616,15]
[367028946,1750623056546,-495.05354217,0.00035616,15]
[367028947,1750623056555,-490.0,0.00035616,15]